[Event "DVM U20 2019"]
[Site "Braunschweig"]
[Date "2019.12.28"]
[Round "4"]
[White "Richter, Philipp"]
[Black "Weller, Uli"]
[Result "0-1"]
[ECO "E38"]
[WhiteElo "2084"]
[BlackElo "2070"]
[Annotator "NA"]
[PlyCount "55"]
[EventDate "2019.12.27"]
[EventType "team-tourn"]
[EventRounds "7"]
[EventCountry "GER"]
[SourceTitle "playchess.com"]
[Source "ChessBase"]
[SourceQuality "1"]
[WhiteTeam "USV TU Dresden"]
[BlackTeam "SF Augsburg"]
[TimeControl "40/5400+30:1800+30"]

1. d4 {[%emt 0:00:00]} Nf6 {[%emt 0:00:00]} 2. c4 {[%emt 0:00:00]} e6 {[%emt 0:00:00]} 3. Nc3 {[%emt 0:00:00]} Bb4 {[%emt 0:00:00]} 4. Qc2 {[%emt 0:00:00]} c5 {[%emt 0:00:10]} 5. dxc5 {[%emt 0:00:00]} Na6 {[%emt 0:00:09]} 6. Nf3 {[%emt 0:01:55]} Nxc5 {[%emt 0:01:29]} 7. a3 {[%emt 0:00:34]} Bxc3+ {[%emt 0:00:12]} 8. Qxc3 {[%emt 0:00:10]} O-O {[%emt 0:01:15]} 9. g3 {[%emt 0:02:49]} b6 {[%emt 0:05:30]} 10. Bg2 {[%emt 0:01:35]} Bb7 {[%emt 0:01:22]} 11. O-O {[%emt 0:02:03]} Rc8 {[%emt 0:03:21]} 12. Bf4 {[%emt 0:05:19]} d5 {[%emt 0:02:28]} 13. Rac1 {[%emt 0:07:48]} dxc4 {[%emt 0:08:44]} 14. Rfd1 {[%emt 0:02:52]} Nd5 {[%emt 0:01:38]} 15. Qxc4 {[%emt 0:02:27]} Ba6 {[%emt 0:00:22]} 16. Qa2 {[%emt 0:07:51]} Bxe2 {[%emt 0:01:00]} 17. Rd2 {[%emt 0:00:50]} Ba6 {[%emt 0:04:21]} 18. Ne5 {[%emt 0:03:18]} Ne4 {[%emt 0:14:24]} 19. Rdd1 {[%emt 0:12:07]} Nxf4 {[%emt 0:00:40]} 20. gxf4 {[%emt 0:00:25]} Rxc1 {[%emt 0:00:18]} 21. Rxc1 {[%emt 0:00:52]} Qd2 {[%emt 0:00:14]} 22. Qb1 {[%emt 0:00:31]} Qxf2+ {[%emt 0:01:04]} 23. Kh1 {[%emt 0:00:12]} Nd2 {[%emt 0:01:43]} 24. Qc2 {[%emt 0:00:45]} Qxf4 {[%emt 0:00:40]} 25. Re1 {[%emt 0:01:25]} g6 {[%emt 0:05:12]} 26. Qc3 {[%emt 0:00:41]} f6 {[%emt 0:26:45]} 27. Nd7 {[%emt 0:06:13]} Rf7 {[%emt 0:01:31] normal} 28. Qc6 {[%emt 0:01:24] normal} 0-1

[Event "DVM U20 2019"]
[Site "Braunschweig"]
[Date "2019.12.28"]
[Round "4"]
[White "Engel, Robert"]
[Black "Oberhofer, Cedric"]
[Result "1/2-1/2"]
[ECO "B91"]
[WhiteElo "2075"]
[BlackElo "2260"]
[Annotator "NA"]
[PlyCount "79"]
[EventDate "2019.12.27"]
[EventType "team-tourn"]
[EventRounds "7"]
[EventCountry "GER"]
[SourceTitle "playchess.com"]
[Source "ChessBase"]
[SourceQuality "1"]
[WhiteTeam "Hamburger SK"]
[BlackTeam "SC Bavaria Regensburg"]
[TimeControl "40/5400+30:1800+30"]

1. e4 {[%emt 0:00:00]} c5 {[%emt 0:00:00]} 2. Nf3 {[%emt 0:00:00]} d6 {[%emt 0:00:00]} 3. d4 {[%emt 0:00:00]} cxd4 {[%emt 0:00:00]} 4. Nxd4 {[%emt 0:00:00]} Nf6 {[%emt 0:00:00]} 5. Nc3 {[%emt 0:00:00]} a6 {[%emt 0:00:00]} 6. g3 {[%emt 0:00:00]} g6 {[%emt 0:01:01]} 7. Bg2 {[%emt 0:00:03]} Bg7 {[%emt 0:00:10]} 8. O-O {[%emt 0:00:07]} O-O {[%emt 0:00:07]} 9. h3 {[%emt 0:00:39]} Nc6 {[%emt 0:02:16]} 10. Be3 {[%emt 0:00:06]} Bd7 {[%emt 0:00:52]} 11. Nde2 {[%emt 0:05:59]} b5 {[%emt 0:15:10]} 12. Nd5 {[%emt 0:07:01]} Rb8 {[%emt 0:04:25]} 13. Rc1 {[%emt 0:07:55]} b4 {[%emt 0:08:49]} 14. b3 {[%emt 0:05:45]} a5 {[%emt 0:09:01]} 15. c4 {[%emt 0:01:53]} bxc3 {[%emt 0:03:08]} 16. Nexc3 {[%emt 0:01:02]} Nb4 {[%emt 0:11:22]} 17. Qd2 {[%emt 0:07:03]} Nbxd5 {[%emt 0:05:21]} 18. exd5 {[%emt 0:06:16]} a4 {[%emt 0:02:13]} 19. Nxa4 {[%emt 0:03:04]} Bxa4 {[%emt 0:00:31]} 20. bxa4 {[%emt 0:00:04]} Nd7 {[%emt 0:00:58]} 21. Rc4 {[%emt 0:07:12]} Ne5 {[%emt 0:06:09]} 22. Rb4 {[%emt 0:01:43]} Rc8 {[%emt 0:01:15]} 23. Bb6 {[%emt 0:03:45]} Nc4 {[%emt 0:12:17]} 24. Rxc4 {[%emt 0:01:05]} Qxb6 {[%emt 0:00:03]} 25. Rc6 {[%emt 0:10:14]} Qa7 {[%emt 0:00:56]} 26. Rfc1 {[%emt 0:01:32]} Rb8 {[%emt 0:02:17]} 27. R6c4 {[%emt 0:05:56]} Bf6 {[%emt 0:04:12]} 28. R1c2 {[%emt 0:03:46]} Kg7 {[%emt 0:01:28]} 29. a5 {[%emt 0:01:25]} Rb1+ {[%emt 0:00:35]} 30. Kh2 {[%emt 0:00:43]} Ra8 {[%emt 0:01:38]} 31. Ra4 {[%emt 0:01:22]} Qa6 {[%emt 0:00:28]} 32. Qe2 {[%emt 0:10:27]} Qxe2 {[%emt 0:00:59]} 33. Rxe2 {[%emt 0:00:10]} Rb5 {[%emt 0:00:27]} 34. a6 {[%emt 0:02:04]} Rb6 {[%emt 0:00:05]} 35. Be4 {[%emt 0:00:48]} Rbxa6 {[%emt 0:00:25]} 36. Rxa6 {[%emt 0:00:02]} Rxa6 {[%emt 0:00:01]} 37. Bd3 {[%emt 0:00:16]} Ra4 {[%emt 0:03:48]} 38. Rc2 {[%emt 0:01:26]} Ra3 {[%emt 0:00:46]} 39. Bc4 {[%emt 0:00:25]} Bd4 {[%emt 0:00:44] normal} 40. Bb3 {[%emt 0:00:55]} 1/2-1/2

[Event "DVM U20 2019"]
[Site "Braunschweig"]
[Date "2019.12.28"]
[Round "4"]
[White "Dechant, Georg"]
[Black "Meyling, Lennart"]
[Result "0-1"]
[ECO "B06"]
[WhiteElo "2065"]
[BlackElo "1955"]
[Annotator "NA"]
[PlyCount "78"]
[EventDate "2019.12.27"]
[EventType "team-tourn"]
[EventRounds "7"]
[EventCountry "GER"]
[SourceTitle "playchess.com"]
[Source "ChessBase"]
[SourceQuality "1"]
[WhiteTeam "SC Bavaria Regensburg"]
[BlackTeam "Hamburger SK"]
[TimeControl "40/5400+30:1800+30"]

1. e4 {[%emt 0:00:00]} g6 {[%emt 0:00:00]} 2. d4 {[%emt 0:00:00]} Bg7 {[%emt 0:00:02]} 3. Nc3 {[%emt 0:00:00]} d6 {[%emt 0:00:09]} 4. Be3 {[%emt 0:00:00]} a6 {[%emt 0:00:51]} 5. Qd2 {[%emt 0:00:01]} b5 {[%emt 0:00:29]} 6. O-O-O {[%emt 0:00:07]} Bb7 {[%emt 0:00:06]} 7. f3 {[%emt 0:00:03]} Nd7 {[%emt 0:00:06]} 8. a3 {[%emt 0:00:22]} Rc8 {[%emt 0:00:09]} 9. g4 {[%emt 0:00:10]} h5 {[%emt 0:00:19]} 10. g5 {[%emt 0:00:06]} c5 {[%emt 0:00:39]} 11. Kb1 {[%emt 0:00:12]} c4 {[%emt 0:03:26]} 12. Bh3 {[%emt 0:02:48]} e6 {[%emt 0:03:12]} 13. Nge2 {[%emt 0:04:38]} Rb8 {[%emt 0:04:38]} 14. Nf4 {[%emt 0:08:38]} Nf8 {[%emt 0:00:12]} 15. d5 {[%emt 0:02:23]} e5 {[%emt 0:00:15]} 16. Nfe2 {[%emt 0:00:04]} Bc8 {[%emt 0:01:25]} 17. Bxc8 {[%emt 0:01:01]} Qxc8 {[%emt 0:00:10]} 18. Na2 {[%emt 0:00:21]} Nd7 {[%emt 0:04:34]} 19. Qa5 {[%emt 0:01:17]} Ne7 {[%emt 0:03:03]} 20. f4 {[%emt 0:02:38]} exf4 {[%emt 0:03:09]} 21. Bxf4 {[%emt 0:00:11]} Ne5 {[%emt 0:00:08]} 22. Nb4 {[%emt 0:02:19]} O-O {[%emt 0:07:11]} 23. Qxa6 {[%emt 0:00:27]} Qc7 {[%emt 0:01:11]} 24. Nd4 {[%emt 0:00:47]} Ra8 {[%emt 0:01:52]} 25. Nxb5 {[%emt 0:00:22]} Qd7 {[%emt 0:02:00]} 26. Qxd6 {[%emt 0:01:46]} Qxb5 {[%emt 0:00:12]} 27. Bxe5 {[%emt 0:01:10]} Rfd8 {[%emt 0:03:17]} 28. Qc7 {[%emt 0:04:42]} Rd7 {[%emt 0:01:35]} 29. Qxd7 {[%emt 0:04:28]} Qxd7 {[%emt 0:00:09]} 30. Bxg7 {[%emt 0:00:12]} Kxg7 {[%emt 0:00:09]} 31. Rhf1 {[%emt 0:00:26]} c3 {[%emt 0:01:14]} 32. Rd3 {[%emt 0:02:10]} cxb2 {[%emt 0:00:47]} 33. Rf6 {[%emt 0:04:15]} Qg4 {[%emt 0:04:59]} 34. d6 {[%emt 0:00:38]} Qxg5 {[%emt 0:00:10]} 35. Rf1 {[%emt 0:00:08]} Nc8 {[%emt 0:00:53]} 36. d7 {[%emt 0:00:13]} Nb6 {[%emt 0:00:13]} 37. Nc6 {[%emt 0:00:30]} Qg2 {[%emt 0:09:09]} 38. Rfd1 {[%emt 0:03:07]} Nxd7 {[%emt 0:00:46]} 39. Rxd7 {[%emt 0:00:04]} Qxe4 {[%emt 0:00:42] normal} 0-1

[Event "DVM U20 2019"]
[Site "Braunschweig"]
[Date "2019.12.28"]
[Round "4"]
[White "Reimer, Philip"]
[Black "Garbuz, Vitaliy"]
[Result "0-1"]
[ECO "C52"]
[WhiteElo "2065"]
[BlackElo "2064"]
[Annotator "NA"]
[PlyCount "80"]
[EventDate "2019.12.27"]
[EventType "team-tourn"]
[EventRounds "7"]
[EventCountry "GER"]
[SourceTitle "playchess.com"]
[Source "ChessBase"]
[SourceQuality "1"]
[WhiteTeam "SK Lehrte 1919"]
[BlackTeam "SF Brackel"]
[TimeControl "40/5400+30:1800+30"]

1. e4 {[%emt 0:00:00]} e5 {[%emt 0:00:19]} 2. Nf3 {[%emt 0:00:00]} Nc6 {[%emt 0:00:06]} 3. Bc4 {[%emt 0:01:48]} Bc5 {[%emt 0:00:09]} 4. b4 {[%emt 0:00:05]} Bxb4 {[%emt 0:00:06]} 5. c3 {[%emt 0:00:05]} Ba5 {[%emt 0:00:04]} 6. d4 {[%emt 0:00:03]} d6 {[%emt 0:00:06]} 7. O-O {[%emt 0:02:18]} Bb6 {[%emt 0:00:35]} 8. Ba3 {[%emt 0:06:13]} Bg4 {[%emt 0:01:56]} 9. Qb3 {[%emt 0:07:33]} Nh6 {[%emt 0:08:54]} 10. Nbd2 {[%emt 0:11:36]} exd4 {[%emt 0:02:41]} 11. e5 {[%emt 0:06:49]} dxc3 {[%emt 0:03:36]} 12. Qxc3 {[%emt 0:04:03]} O-O {[%emt 0:04:29]} 13. exd6 {[%emt 0:01:07]} cxd6 {[%emt 0:03:07]} 14. h3 {[%emt 0:02:42]} Ba5 {[%emt 0:01:13]} 15. Qb2 {[%emt 0:05:08]} Bxf3 {[%emt 0:03:40]} 16. Nxf3 {[%emt 0:00:12]} Qb6 {[%emt 0:01:02]} 17. Qxb6 {[%emt 0:06:00]} Bxb6 {[%emt 0:00:19]} 18. Bxd6 {[%emt 0:01:03]} Rfd8 {[%emt 0:00:22]} 19. Bf4 {[%emt 0:04:46]} Nf5 {[%emt 0:01:23]} 20. Rad1 {[%emt 0:01:08]} h6 {[%emt 0:01:57]} 21. g4 {[%emt 0:03:24]} Nfd4 {[%emt 0:00:56]} 22. Nxd4 {[%emt 0:00:56]} Nxd4 {[%emt 0:00:47]} 23. Kg2 {[%emt 0:01:25]} Rac8 {[%emt 0:03:17]} 24. Bd3 {[%emt 0:04:58]} Ne6 {[%emt 0:02:12]} 25. Bg3 {[%emt 0:05:19]} Bc7 {[%emt 0:06:29]} 26. Bf5 {[%emt 0:09:28]} Bxg3 {[%emt 0:00:26]} 27. Rxd8+ {[%emt 0:00:54]} Rxd8 {[%emt 0:00:15]} 28. Bxe6 {[%emt 0:01:35]} fxe6 {[%emt 0:00:07]} 29. Kxg3 {[%emt 0:00:07]} Rd2 {[%emt 0:00:51]} 30. Rb1 {[%emt 0:00:11]} b6 {[%emt 0:00:52]} 31. a4 {[%emt 0:01:08]} Rd3+ {[%emt 0:01:11]} 32. Kg2 {[%emt 0:00:23]} Ra3 {[%emt 0:00:35]} 33. Rb4 {[%emt 0:00:14]} Kf8 {[%emt 0:03:00]} 34. Rc4 {[%emt 0:10:29]} Ke8 {[%emt 0:04:44]} 35. Rf4 {[%emt 0:02:52]} a5 {[%emt 0:03:02]} 36. Rc4 {[%emt 0:01:11]} Kd7 {[%emt 0:01:08]} 37. Rf4 {[%emt 0:00:21]} Kc6 {[%emt 0:00:51]} 38. Rf7 {[%emt 0:00:46]} Rxa4 {[%emt 0:00:51]} 39. Rxg7 {[%emt 0:00:02] normal} b5 {[%emt 0:02:18] normal} 40. h4 {[%emt 0:01:04]} b4 {[%emt 0:00:28] normal} 0-1

[Event "DVM U20 2019"]
[Site "Braunschweig"]
[Date "2019.12.28"]
[Round "4"]
[White "Geltz, Noah"]
[Black "Koll, Lukas"]
[Result "1/2-1/2"]
[ECO "A06"]
[WhiteElo "2054"]
[BlackElo "2093"]
[Annotator "NA"]
[PlyCount "82"]
[EventDate "2019.12.27"]
[EventType "team-tourn"]
[EventRounds "7"]
[EventCountry "GER"]
[SourceTitle "playchess.com"]
[Source "ChessBase"]
[SourceQuality "1"]
[WhiteTeam "SF HN-Biberach"]
[BlackTeam "Karlsruher SF"]
[TimeControl "40/5400+30:1800+30"]

1. Nf3 {[%emt 0:00:05]} d5 {[%emt 0:00:00]} 2. c4 {[%emt 0:00:21]} e6 {[%emt 0:00:42]} 3. cxd5 {[%emt 0:02:00]} exd5 {[%emt 0:00:05]} 4. g3 {[%emt 0:00:38]} Nf6 {[%emt 0:01:19]} 5. Bg2 {[%emt 0:01:06]} c5 {[%emt 0:01:30]} 6. d4 {[%emt 0:00:34]} Nc6 {[%emt 0:00:27]} 7. Nc3 {[%emt 0:01:22]} Be6 {[%emt 0:00:20]} 8. O-O {[%emt 0:01:08]} Be7 {[%emt 0:01:12]} 9. b3 {[%emt 0:04:22]} O-O {[%emt 0:00:51]} 10. Bb2 {[%emt 0:00:27]} Qd7 {[%emt 0:04:30]} 11. dxc5 {[%emt 0:01:39]} Bxc5 {[%emt 0:00:13]} 12. Rc1 {[%emt 0:00:34]} Be7 {[%emt 0:00:25]} 13. Qd2 {[%emt 0:02:59]} Ne4 {[%emt 0:02:55]} 14. Qd3 {[%emt 0:07:25]} Bf5 {[%emt 0:08:33]} 15. Nxe4 {[%emt 0:18:16]} dxe4 {[%emt 0:06:29]} 16. Qxd7 {[%emt 0:00:37]} Bxd7 {[%emt 0:00:12]} 17. Nd2 {[%emt 0:05:01]} f5 {[%emt 0:00:42]} 18. Nc4 {[%emt 0:00:23]} Rfd8 {[%emt 0:05:57]} 19. g4 {[%emt 0:01:55]} fxg4 {[%emt 0:05:17]} 20. Bxe4 {[%emt 0:00:42]} Be6 {[%emt 0:00:46]} 21. Rfd1 {[%emt 0:03:06]} Rxd1+ {[%emt 0:00:39]} 22. Rxd1 {[%emt 0:00:06]} Rd8 {[%emt 0:00:04]} 23. Rxd8+ {[%emt 0:01:51]} Bxd8 {[%emt 0:02:13]} 24. Nd6 {[%emt 0:00:20]} Nb4 {[%emt 0:02:24]} 25. a3 {[%emt 0:01:34]} Nd5 {[%emt 0:00:31]} 26. Nxb7 {[%emt 0:01:02]} Bb6 {[%emt 0:05:38]} 27. b4 {[%emt 0:01:20]} Nf4 {[%emt 0:01:24]} 28. e3 {[%emt 0:01:51]} Nh3+ {[%emt 0:00:54]} 29. Kg2 {[%emt 0:00:42]} h5 {[%emt 0:00:09]} 30. Nc5 {[%emt 0:01:10]} Bc8 {[%emt 0:00:37]} 31. Bd4 {[%emt 0:02:11]} Ng5 {[%emt 0:00:49]} 32. Bd5+ {[%emt 0:00:34]} Kh7 {[%emt 0:00:11]} 33. Ne4 {[%emt 0:03:19]} Bxd4 {[%emt 0:04:55]} 34. Nxg5+ {[%emt 0:01:46]} Kg6 {[%emt 0:00:10]} 35. exd4 {[%emt 0:00:09]} Kxg5 {[%emt 0:00:06]} 36. b5 {[%emt 0:00:30]} Kf6 {[%emt 0:00:56]} 37. f4 {[%emt 0:01:14]} h4 {[%emt 0:01:51]} 38. a4 {[%emt 0:04:40]} Ke7 {[%emt 0:02:36]} 39. Bc6 {[%emt 0:07:23]} Kd6 {[%emt 0:00:40]} 40. d5 {[%emt 0:00:34]} Bf5 {[%emt 0:01:58]} 41. Kf2 {[%emt 0:34:15]} Be4 {[%emt 0:30:50] normal} 1/2-1/2

[Event "DVM U20 2019"]
[Site "Braunschweig"]
[Date "2019.12.28"]
[Round "4"]
[White "Martin III, Richard"]
[Black "Ortner, Jonas Ruben"]
[Result "1-0"]
[ECO "B22"]
[WhiteElo "2043"]
[BlackElo "1718"]
[Annotator "NA"]
[PlyCount "52"]
[EventDate "2019.12.27"]
[EventType "team-tourn"]
[EventRounds "7"]
[EventCountry "GER"]
[SourceTitle "playchess.com"]
[Source "ChessBase"]
[SourceQuality "1"]
[WhiteTeam "OSG Baden-Baden"]
[BlackTeam "SK Bebenhausen"]
[TimeControl "40/5400+30:1800+30"]

1. e4 {[%emt 0:00:00]} c5 {[%emt 0:00:00]} 2. c3 {[%emt 0:00:00]} Nf6 {[%emt 0:00:00]} 3. e5 {[%emt 0:00:00]} Nd5 {[%emt 0:00:00]} 4. d4 {[%emt 0:00:00]} cxd4 {[%emt 0:00:00]} 5. cxd4 {[%emt 0:00:00]} d6 {[%emt 0:00:04]} 6. Nf3 {[%emt 0:00:16]} e6 {[%emt 0:00:09]} 7. Bc4 {[%emt 0:00:09]} Nc6 {[%emt 0:00:07]} 8. O-O {[%emt 0:00:11]} Be7 {[%emt 0:00:07]} 9. Qe2 {[%emt 0:00:06]} O-O {[%emt 0:00:15]} 10. Qe4 {[%emt 0:01:45]} Bd7 {[%emt 0:00:53]} 11. Qg4 {[%emt 0:03:58]} f5 {[%emt 0:32:25]} 12. exf6 {[%emt 0:00:09]} Rxf6 {[%emt 0:00:42]} 13. Nc3 {[%emt 0:05:22]} Nxc3 {[%emt 0:06:14]} 14. bxc3 {[%emt 0:02:28]} d5 {[%emt 0:04:39]} 15. Bb3 {[%emt 0:04:43]} Na5 {[%emt 0:03:46]} 16. Bc2 {[%emt 0:05:06]} Qc7 {[%emt 0:14:39]} 17. Bg5 {[%emt 0:06:09]} Rxf3 {[%emt 0:10:44]} 18. gxf3 {[%emt 0:01:49]} Bxg5 {[%emt 0:00:23]} 19. Qxg5 {[%emt 0:00:52]} Qxc3 {[%emt 0:00:38]} 20. Rac1 {[%emt 0:00:37]} Qxf3 {[%emt 0:02:31]} 21. Qh4 {[%emt 0:02:44]} g6 {[%emt 0:03:48]} 22. Bd1 {[%emt 0:03:49]} Qf7 {[%emt 0:01:41]} 23. Rc7 {[%emt 0:02:56]} Rf8 {[%emt 0:05:58]} 24. Ba4 {[%emt 0:00:45]} Nc6 {[%emt 0:01:16]} 25. Rxb7 {[%emt 0:00:26]} Nb8 {[%emt 0:07:59]} 26. Rfb1 {[%emt 0:01:41]} g5 {[%emt 0:03:20] normal} 1-0

[Event "DVM U20 2019"]
[Site "Braunschweig"]
[Date "2019.12.28"]
[Round "4"]
[White "Verfuerth, Kevin"]
[Black "Hennemann, Florian"]
[Result "1/2-1/2"]
[ECO "A15"]
[WhiteElo "2038"]
[BlackElo "1865"]
[Annotator "NA"]
[PlyCount "107"]
[EventDate "2019.12.27"]
[EventType "team-tourn"]
[EventRounds "7"]
[EventCountry "GER"]
[SourceTitle "playchess.com"]
[Source "ChessBase"]
[SourceQuality "1"]
[WhiteTeam "SK Turm Kleve"]
[BlackTeam "Sges Bensheim"]
[TimeControl "40/5400+30:1800+30"]

1. c4 {[%emt 0:00:00]} Nf6 {[%emt 0:00:00]} 2. g3 {[%emt 0:00:00]} g6 {[%emt 0:00:00]} 3. Bg2 {[%emt 0:00:00]} Bg7 {[%emt 0:00:00]} 4. Nc3 {[%emt 0:00:00]} c6 {[%emt 0:00:00]} 5. e4 {[%emt 0:01:07]} d6 {[%emt 0:00:06]} 6. Nge2 {[%emt 0:00:11]} O-O {[%emt 0:00:13]} 7. O-O {[%emt 0:00:07]} e5 {[%emt 0:01:22]} 8. d4 {[%emt 0:01:06]} Nbd7 {[%emt 0:00:42]} 9. h3 {[%emt 0:01:48]} Qe7 {[%emt 0:01:19]} 10. Be3 {[%emt 0:01:38]} a5 {[%emt 0:01:24]} 11. Kh2 {[%emt 0:01:30]} Nh5 {[%emt 0:05:58]} 12. g4 {[%emt 0:04:46]} Nhf6 {[%emt 0:02:25]} 13. f4 {[%emt 0:01:29]} exd4 {[%emt 0:01:51]} 14. Bxd4 {[%emt 0:02:03]} Ne8 {[%emt 0:01:55]} 15. Ng3 {[%emt 0:04:10]} Nc5 {[%emt 0:02:17]} 16. Bxg7 {[%emt 0:07:28]} Kxg7 {[%emt 0:01:29]} 17. Qd4+ {[%emt 0:03:20]} Kg8 {[%emt 0:01:31]} 18. f5 {[%emt 0:00:32]} Qe5 {[%emt 0:02:26]} 19. Rad1 {[%emt 0:10:00]} f6 {[%emt 0:04:21]} 20. Qd2 {[%emt 0:03:44]} g5 {[%emt 0:02:25]} 21. Nce2 {[%emt 0:01:19]} Rf7 {[%emt 0:04:26]} 22. Nd4 {[%emt 0:02:22]} Ra7 {[%emt 0:01:45]} 23. Nf3 {[%emt 0:04:26]} Qe7 {[%emt 0:01:53]} 24. Rde1 {[%emt 0:03:46]} b6 {[%emt 0:01:43]} 25. Rh1 {[%emt 0:06:54]} h6 {[%emt 0:04:46]} 26. Nd4 {[%emt 0:04:01]} Rc7 {[%emt 0:03:09]} 27. Bf3 {[%emt 0:02:17]} Nd7 {[%emt 0:01:24]} 28. Kg2 {[%emt 0:02:05]} Ne5 {[%emt 0:03:30]} 29. b3 {[%emt 0:03:22]} Bb7 {[%emt 0:01:04]} 30. h4 {[%emt 0:01:36]} Rd7 {[%emt 0:01:34]} 31. hxg5 {[%emt 0:01:40]} hxg5 {[%emt 0:00:19]} 32. Rh6 {[%emt 0:04:10]} Rh7 {[%emt 0:01:21]} 33. Rxh7 {[%emt 0:01:01]} Kxh7 {[%emt 0:02:22]} 34. Rh1+ {[%emt 0:03:48]} Kg8 {[%emt 0:00:05]} 35. Kf1 {[%emt 0:06:40]} d5 {[%emt 0:12:56]} 36. Qh2 {[%emt 0:00:20]} Qh7 {[%emt 0:00:08]} 37. Qxh7+ {[%emt 0:00:23]} Rxh7 {[%emt 0:00:06]} 38. Rxh7 {[%emt 0:00:05]} Kxh7 {[%emt 0:00:03]} 39. cxd5 {[%emt 0:00:57]} cxd5 {[%emt 0:01:01]} 40. exd5 {[%emt 0:00:18]} Nxf3 {[%emt 0:00:19]} 41. Nxf3 {[%emt 0:30:02]} Bxd5 {[%emt 0:30:06]} 42. Ke2 {[%emt 0:00:56]} Kg8 {[%emt 0:03:15]} 43. Nf1 {[%emt 0:10:12]} a4 {[%emt 0:07:13]} 44. bxa4 {[%emt 0:00:12]} Bc4+ {[%emt 0:00:08]} 45. Kf2 {[%emt 0:00:31]} Bxa2 {[%emt 0:00:05]} 46. N1d2 {[%emt 0:00:18]} Kf7 {[%emt 0:01:49]} 47. Ke3 {[%emt 0:00:28]} Ke7 {[%emt 0:01:01]} 48. Kd4 {[%emt 0:01:19]} Kd6 {[%emt 0:02:14]} 49. Ne4+ {[%emt 0:01:35]} Kc6 {[%emt 0:00:44]} 50. Nc3 {[%emt 0:01:25]} Bb3 {[%emt 0:01:56]} 51. Nd2 {[%emt 0:00:03]} Bc2 {[%emt 0:01:31]} 52. Nde4 {[%emt 0:00:47]} Bb3 {[%emt 0:01:31]} 53. Nd2 {[%emt 0:00:00]} Bc2 {[%emt 0:00:00]} 54. Nc4 {[%emt 0:00:00] normal} 1/2-1/2

[Event "DVM U20 2019"]
[Site "Braunschweig"]
[Date "2019.12.28"]
[Round "4"]
[White "Elier, Ali"]
[Black "Dornieden, Jonas"]
[Result "1-0"]
[ECO "B18"]
[WhiteElo "2032"]
[BlackElo "1912"]
[Annotator "NA"]
[PlyCount "49"]
[EventDate "2019.12.27"]
[EventType "team-tourn"]
[EventRounds "7"]
[EventCountry "GER"]
[SourceTitle "playchess.com"]
[Source "ChessBase"]
[SourceQuality "1"]
[WhiteTeam "SF Brackel"]
[BlackTeam "SK Lehrte 1919"]
[TimeControl "40/5400+30:1800+30"]

1. e4 {[%emt 0:00:00]} c6 {[%emt 0:00:00]} 2. d4 {[%emt 0:00:09]} d5 {[%emt 0:00:00]} 3. Nc3 {[%emt 0:00:00]} dxe4 {[%emt 0:00:00]} 4. Nxe4 {[%emt 0:00:00]} Bf5 {[%emt 0:00:00]} 5. Nc5 {[%emt 0:00:00]} e5 {[%emt 0:11:30]} 6. Nxb7 {[%emt 0:00:00]} Qxd4 {[%emt 0:01:54]} 7. Qxd4 {[%emt 0:18:38]} exd4 {[%emt 0:00:06]} 8. Bd3 {[%emt 0:00:41]} Bxd3 {[%emt 0:04:19]} 9. cxd3 {[%emt 0:00:07]} a5 {[%emt 0:05:57]} 10. Bd2 {[%emt 0:05:14]} Na6 {[%emt 0:21:02]} 11. Nf3 {[%emt 0:03:26]} Nb4 {[%emt 0:11:31]} 12. Ke2 {[%emt 0:04:25]} Ra7 {[%emt 0:04:22]} 13. Nxa5 {[%emt 0:00:05]} Rxa5 {[%emt 0:00:42]} 14. a3 {[%emt 0:00:03]} Nc2 {[%emt 0:18:08]} 15. Bxa5 {[%emt 0:02:09]} Nxa1 {[%emt 0:00:05]} 16. Rxa1 {[%emt 0:00:04]} h5 {[%emt 0:01:51]} 17. Nxd4 Rh6 {[%emt 0:00:33]} 18. Bd2 {[%emt 0:05:00]} Rg6 {[%emt 0:01:18]} 19. g3 {[%emt 0:00:32]} Nh6 {[%emt 0:01:52]} 20. Rc1 {[%emt 0:00:38]} Kd7 {[%emt 0:00:35]} 21. b4 {[%emt 0:00:40]} Ng4 {[%emt 0:01:29]} 22. h3 {[%emt 0:00:49]} Nh6 {[%emt 0:03:35]} 23. a4 {[%emt 0:01:52] normal} Rd6 {[%emt 0:02:26]} 24. Be3 {[%emt 0:01:27] normal} g6 {[%emt 0:02:36] normal} 25. a5 {[%emt 0:00:23] normal} 1-0

[Event "DVM U20 2019"]
[Site "Braunschweig"]
[Date "2019.12.28"]
[Round "4"]
[White "Keller, Yannik"]
[Black "Wiegersma, Justus"]
[Result "1-0"]
[ECO "B76"]
[WhiteElo "2020"]
[BlackElo "1975"]
[Annotator "NA"]
[PlyCount "62"]
[EventDate "2019.12.27"]
[EventType "team-tourn"]
[EventRounds "7"]
[EventCountry "GER"]
[SourceTitle "playchess.com"]
[Source "ChessBase"]
[SourceQuality "1"]
[WhiteTeam "Sges Bensheim"]
[BlackTeam "SK Turm Kleve"]
[TimeControl "40/5400+30:1800+30"]

1. e4 {[%emt 0:00:00]} c5 {[%emt 0:00:00]} 2. Nf3 {[%emt 0:00:00]} d6 {[%emt 0:00:00]} 3. d4 {[%emt 0:00:00]} cxd4 {[%emt 0:00:00]} 4. Nxd4 {[%emt 0:00:00]} Nf6 {[%emt 0:00:00]} 5. Nc3 {[%emt 0:00:00]} g6 {[%emt 0:01:00]} 6. f3 {[%emt 0:00:31]} Bg7 {[%emt 0:00:11]} 7. Be3 {[%emt 0:00:06]} O-O {[%emt 0:00:09]} 8. Bc4 {[%emt 0:00:32]} Nc6 {[%emt 0:00:10]} 9. Bb3 {[%emt 0:00:06]} Bd7 {[%emt 0:00:08]} 10. h4 {[%emt 0:00:16]} Nxd4 {[%emt 0:00:50]} 11. Bxd4 {[%emt 0:00:09]} b5 {[%emt 0:00:07]} 12. h5 {[%emt 0:00:36]} a5 {[%emt 0:00:35]} 13. hxg6 {[%emt 0:08:33]} hxg6 {[%emt 0:03:55]} 14. a4 {[%emt 0:01:07]} b4 {[%emt 0:04:12]} 15. Nd5 {[%emt 0:00:54]} Nxd5 {[%emt 0:12:13]} 16. Bxd5 {[%emt 0:05:04]} Rc8 {[%emt 0:01:52]} 17. Qd2 {[%emt 0:24:52]} e5 {[%emt 0:09:55]} 18. Be3 {[%emt 0:00:28]} Re8 {[%emt 0:06:37]} 19. b3 {[%emt 0:06:48]} Be6 {[%emt 0:09:48]} 20. Bxe6 {[%emt 0:08:40]} Rxe6 {[%emt 0:01:40]} 21. O-O-O {[%emt 0:02:30]} Qc7 {[%emt 0:01:49]} 22. Qf2 {[%emt 0:03:08]} Qc3 {[%emt 0:00:32]} 23. Kb1 {[%emt 0:00:13]} Bf6 {[%emt 0:00:52]} 24. Rd3 {[%emt 0:03:05]} Qc6 {[%emt 0:01:31]} 25. g4 {[%emt 0:02:52]} Re7 {[%emt 0:04:31]} 26. g5 {[%emt 0:07:06]} Bg7 {[%emt 0:00:10]} 27. Rd5 {[%emt 0:01:05]} Qa6 {[%emt 0:01:14]} 28. Rhd1 {[%emt 0:01:50]} Rc6 {[%emt 0:00:08]} 29. Rb5 {[%emt 0:04:38]} Rec7 {[%emt 0:00:52]} 30. Rd2 {[%emt 0:01:29]} Rc8 {[%emt 0:00:58]} 31. Qe2 {[%emt 0:06:30] normal} R8c7 {[%emt 0:03:32] normal} 1-0